[Event "GrandPrix_29.05"]
[Site "Chess.com"]
[Date "2020.05.29"]
[Round "4"]
[White "Durarbayli"]
[Black "RussianChessFighter"]
[Result "1-0"]
[WhiteElo "2612"]
[BlackElo "2274"]
[TimeControl "600+2"]
[EndTime "11:00:13 PDT"]
[Termination "Durarbayli won by resignation"]

1. e4 {[%clk 0:09:57.4]} 1... Nc6 {[%clk 0:09:59.8]} 2. Nf3 {[%clk 0:09:57.5]}
2... d6 {[%clk 0:09:57.7]} 3. d4 {[%clk 0:09:49.3]} 3... Nf6 {[%clk 0:09:58.2]}
4. Nc3 {[%clk 0:09:43.2]} 4... Bg4 {[%clk 0:09:58.6]} 5. Be3 {[%clk 0:09:38]}
5... e6 {[%clk 0:09:59.4]} 6. d5 {[%clk 0:09:11.3]} 6... exd5 {[%clk 0:09:35.8]}
7. exd5 {[%clk 0:09:07.6]} 7... Ne5 {[%clk 0:09:26.2]} 8. Bb5+ {[%clk
0:09:05.8]} 8... Bd7 {[%clk 0:08:58.2]} 9. Be2 {[%clk 0:08:36.3]} 9... Be7
{[%clk 0:08:53.4]} 10. h3 {[%clk 0:08:34.2]} 10... Nxf3+ {[%clk 0:08:51.4]} 11.
Bxf3 {[%clk 0:08:33.6]} 11... O-O {[%clk 0:08:53.3]} 12. Qd3 {[%clk 0:08:18.2]}
12... Re8 {[%clk 0:08:32.1]} 13. g4 {[%clk 0:08:12.2]} 13... Bc8 {[%clk
0:08:11.9]} 14. O-O-O {[%clk 0:07:58.8]} 14... Nd7 {[%clk 0:08:12.2]} 15. Qd2
{[%clk 0:07:27.4]} 15... Nc5 {[%clk 0:06:58.2]} 16. Kb1 {[%clk 0:07:08]} 16...
f5 {[%clk 0:06:50.5]} 17. Rhe1 {[%clk 0:06:08.5]} 17... Bf6 {[%clk 0:06:41]} 18.
Bxc5 {[%clk 0:05:29.6]} 18... dxc5 {[%clk 0:06:38.2]} 19. d6 {[%clk 0:04:50.7]}
19... Rxe1 {[%clk 0:05:56.8]} 20. Rxe1 {[%clk 0:04:17.7]} 20... Qxd6 {[%clk
0:04:41.9]} 21. Re8+ {[%clk 0:03:00.3]} 21... Kf7 {[%clk 0:04:41.8]} 22. Qe2
{[%clk 0:02:43.6]} 22... c6 {[%clk 0:04:17.2]} 23. gxf5 {[%clk 0:02:03.4]} 23...
Bxc3 {[%clk 0:03:29.8]} 24. bxc3 {[%clk 0:01:56.6]} 24... Rb8 {[%clk 0:03:30.2]}
25. Bh5+ {[%clk 0:00:51.6]} 25... Kf6 {[%clk 0:03:21.1]} 26. f4 {[%clk
0:00:20.4]} 26... g6 {[%clk 0:01:27.4]} 27. fxg6 {[%clk 0:00:13.3]} 27... hxg6
{[%clk 0:01:29.3]} 28. Bxg6 {[%clk 0:00:03.9]} 28... Kxg6 {[%clk 0:01:18.8]} 29.
Rg8+ {[%clk 0:00:04.7]} 29... Kf6 {[%clk 0:01:10.3]} 30. Qe8 {[%clk 0:00:05.3]}
30... Be6 {[%clk 0:00:16.8]} 31. Qxb8 {[%clk 0:00:05.3]} 31... Qd1+ {[%clk
0:00:17.1]} 32. Kb2 {[%clk 0:00:06.4]} 32... Bxg8 {[%clk 0:00:19]} 33. Qxg8
{[%clk 0:00:07.7]} 33... Qf3 {[%clk 0:00:08.8]} 34. Qg5+ {[%clk 0:00:08.3]}
34... Kf7 {[%clk 0:00:07.9]} 35. h4 {[%clk 0:00:10.2]} 35... Qe4 {[%clk
0:00:07.9]} 36. h5 {[%clk 0:00:11.2]} 36... c4 {[%clk 0:00:08.8]} 37. Qe5 {[%clk
0:00:10.1]} 37... Qh1 {[%clk 0:00:07.3]} 38. Qf5+ {[%clk 0:00:10]} 38... Ke7
{[%clk 0:00:07.8]} 39. Qg5+ {[%clk 0:00:11]} 39... Kd6 {[%clk 0:00:08.5]} 40.
Qe5+ {[%clk 0:00:11.8]} 40... Kd7 {[%clk 0:00:09.3]} 41. Qg7+ {[%clk 0:00:13]}
41... Kd6 {[%clk 0:00:10.8]} 42. h6 {[%clk 0:00:14.7]} 42... Qh5 {[%clk
0:00:10.3]} 43. Qe5+ {[%clk 0:00:15.5]} 1-0

[Event "GrandPrix_29.05"]
[Site "Chess.com"]
[Date "2020.05.29"]
[Round "4"]
[White "igorkovalenko"]
[Black "Sporty207"]
[Result "1-0"]
[WhiteElo "2184"]
[BlackElo "2211"]
[TimeControl "600+2"]
[EndTime "11:00:14 PDT"]
[Termination "igorkovalenko won on time"]

1. e4 {[%clk 0:10:01.9]} 1... e6 {[%clk 0:10:00.1]} 2. d4 {[%clk 0:10:02.7]}
2... d5 {[%clk 0:09:56.8]} 3. e5 {[%clk 0:10:04]} 3... c5 {[%clk 0:09:57.4]} 4.
c3 {[%clk 0:10:05.4]} 4... Nc6 {[%clk 0:09:58.4]} 5. Nf3 {[%clk 0:10:06.8]} 5...
Qb6 {[%clk 0:09:58.8]} 6. a3 {[%clk 0:10:07.9]} 6... Nh6 {[%clk 0:09:58.7]} 7.
Bd3 {[%clk 0:10:07.8]} 7... cxd4 {[%clk 0:09:50.9]} 8. O-O {[%clk 0:10:00.9]}
8... Be7 {[%clk 0:09:21.6]} 9. b4 {[%clk 0:09:59.7]} 9... Nf5 {[%clk 0:08:57.9]}
10. Bb2 {[%clk 0:09:20]} 10... Bd7 {[%clk 0:08:32.9]} 11. cxd4 {[%clk
0:08:35.9]} 11... Nfxd4 {[%clk 0:07:27]} 12. Nxd4 {[%clk 0:08:36.2]} 12... Nxd4
{[%clk 0:07:27.1]} 13. Qg4 {[%clk 0:08:37.2]} 13... Nb3 {[%clk 0:07:27.6]} 14.
Qxg7 {[%clk 0:08:27.5]} 14... Rf8 {[%clk 0:07:20.3]} 15. Ra2 {[%clk 0:08:14]}
15... Bb5 {[%clk 0:06:42.4]} 16. Qg3 {[%clk 0:07:57.8]} 16... Bc4 {[%clk
0:05:51]} 17. Bxc4 {[%clk 0:07:39.5]} 17... dxc4 {[%clk 0:05:51.3]} 18. Qf4
{[%clk 0:07:07.2]} 18... Qc6 {[%clk 0:05:48.4]} 19. Bc3 {[%clk 0:07:01.1]} 19...
O-O-O {[%clk 0:05:44.2]} 20. a4 {[%clk 0:06:43.3]} 20... Rg8 {[%clk 0:05:02.7]}
21. g3 {[%clk 0:06:42.1]} 21... h5 {[%clk 0:04:57]} 22. Re2 {[%clk 0:06:10.4]}
22... h4 {[%clk 0:04:44.6]} 23. Qe4 {[%clk 0:05:15]} 23... Qd5 {[%clk
0:04:22.4]} 24. Na3 {[%clk 0:04:26.7]} 24... hxg3 {[%clk 0:03:45.2]} 25. fxg3
{[%clk 0:04:02.7]} 25... Bc5+ {[%clk 0:03:17.7]} 26. bxc5 {[%clk 0:03:48.5]}
26... Qxc5+ {[%clk 0:03:18.2]} 27. Kg2 {[%clk 0:03:48.1]} 27... Qxa3 {[%clk
0:03:19.1]} 28. Rxf7 {[%clk 0:03:35.3]} 28... Nc5 {[%clk 0:02:25.6]} 29. Qxc4
{[%clk 0:03:33.7]} 29... b6 {[%clk 0:02:09.8]} 30. a5 {[%clk 0:02:42.4]} 30...
Qa4 {[%clk 0:01:48]} 31. Qxa4 {[%clk 0:02:41.8]} 31... Nxa4 {[%clk 0:01:49.1]}
32. Be1 {[%clk 0:02:43]} 32... Rd7 {[%clk 0:01:36.4]} 33. Rf6 {[%clk 0:02:41.9]}
33... Nc5 {[%clk 0:01:35.8]} 34. Bf2 {[%clk 0:02:42.7]} 34... Re8 {[%clk
0:01:25.8]} 35. axb6 {[%clk 0:02:42]} 35... axb6 {[%clk 0:01:26.1]} 36. g4
{[%clk 0:02:38.6]} 36... Kb7 {[%clk 0:00:41.7]} 37. g5 {[%clk 0:01:44.7]} 37...
Rg8 {[%clk 0:00:40.2]} 38. h4 {[%clk 0:01:45]} 38... Nd3 {[%clk 0:00:41.3]} 39.
Kg3 {[%clk 0:00:36.1]} 39... Nxf2 {[%clk 0:00:21.3]} 40. Rexf2 {[%clk
0:00:36.7]} 40... Rd4 {[%clk 0:00:23]} 41. Rxe6 {[%clk 0:00:21.2]} 41... b5
{[%clk 0:00:22.3]} 42. Rf7+ {[%clk 0:00:20.5]} 42... Kc8 {[%clk 0:00:17.9]} 43.
Ra6 {[%clk 0:00:21.2]} 43... Rd3+ {[%clk 0:00:11.1]} 44. Kg4 {[%clk 0:00:21.6]}
44... Kb8 {[%clk 0:00:12.3]} 45. Rb6+ {[%clk 0:00:22.2]} 45... Ka8 {[%clk
0:00:08.9]} 46. Rxb5 {[%clk 0:00:23.1]} 1-0

[Event "GrandPrix_29.05"]
[Site "Chess.com"]
[Date "2020.05.29"]
[Round "4"]
[White "payto1"]
[Black "Sergey_Krivenko"]
[Result "0-1"]
[WhiteElo "2154"]
[BlackElo "2096"]
[TimeControl "600+2"]
[EndTime "11:00:14 PDT"]
[Termination "Sergey_Krivenko won by checkmate"]

1. d4 {[%clk 0:09:55.3]} 1... d5 {[%clk 0:09:57.2]} 2. c4 {[%clk 0:09:54.8]}
2... c6 {[%clk 0:09:57.4]} 3. Nf3 {[%clk 0:09:55.3]} 3... Nf6 {[%clk 0:09:57.1]}
4. Qc2 {[%clk 0:09:55.9]} 4... dxc4 {[%clk 0:09:39.9]} 5. Qxc4 {[%clk
0:09:57.8]} 5... e6 {[%clk 0:09:40.9]} 6. g3 {[%clk 0:09:56.2]} 6... b5 {[%clk
0:09:39.3]} 7. Qc2 {[%clk 0:09:56.4]} 7... Bb7 {[%clk 0:09:37.1]} 8. Bg2 {[%clk
0:09:56.7]} 8... Nbd7 {[%clk 0:09:33.6]} 9. O-O {[%clk 0:09:54.6]} 9... c5
{[%clk 0:09:15.9]} 10. dxc5 {[%clk 0:09:11.7]} 10... Bxc5 {[%clk 0:09:12.1]} 11.
Bg5 {[%clk 0:08:55.1]} 11... Qb6 {[%clk 0:09:04.8]} 12. Nc3 {[%clk 0:08:51.9]}
12... Rc8 {[%clk 0:08:26]} 13. a3 {[%clk 0:08:31.9]} 13... Ne4 {[%clk
0:07:37.9]} 14. e3 {[%clk 0:07:28.3]} 14... Ndf6 {[%clk 0:05:37.6]} 15. Bxf6
{[%clk 0:07:19.9]} 15... Nxf6 {[%clk 0:05:39.5]} 16. Qe2 {[%clk 0:07:19]} 16...
a6 {[%clk 0:05:03.8]} 17. Rac1 {[%clk 0:07:12.2]} 17... O-O {[%clk 0:04:51.5]}
18. Rfd1 {[%clk 0:07:05.5]} 18... Ng4 {[%clk 0:03:56.1]} 19. b4 {[%clk
0:05:46.1]} 19... Be7 {[%clk 0:03:40.3]} 20. h3 {[%clk 0:04:00.5]} 20... Nf6
{[%clk 0:03:38.4]} 21. Rc2 {[%clk 0:03:55.2]} 21... Ne4 {[%clk 0:03:16.2]} 22.
Rdc1 {[%clk 0:03:28.3]} 22... Nxc3 {[%clk 0:02:58.4]} 23. Rxc3 {[%clk
0:03:30.2]} 23... Rxc3 {[%clk 0:02:57.4]} 24. Rxc3 {[%clk 0:03:32.1]} 24... Bf6
{[%clk 0:02:52.4]} 25. Rc5 {[%clk 0:03:10.7]} 25... Rc8 {[%clk 0:02:20.1]} 26.
Rxc8+ {[%clk 0:02:51.6]} 26... Bxc8 {[%clk 0:02:22]} 27. Nd2 {[%clk 0:02:52.1]}
27... Qc7 {[%clk 0:01:51.1]} 28. Ne4 {[%clk 0:02:38.1]} 28... Qc1+ {[%clk
0:01:40.5]} 29. Kh2 {[%clk 0:02:37.3]} 29... Be7 {[%clk 0:01:40.3]} 30. Qd3
{[%clk 0:02:31.7]} 30... Qc4 {[%clk 0:01:26.7]} 31. Qd2 {[%clk 0:02:05.6]} 31...
Qc7 {[%clk 0:01:21.7]} 32. Qd4 {[%clk 0:01:40.8]} 32... h6 {[%clk 0:01:16.6]}
33. Nc5 {[%clk 0:01:35.3]} 33... Bf6 {[%clk 0:00:53]} 34. Qe4 {[%clk 0:01:23.3]}
34... Be7 {[%clk 0:00:41.2]} 35. Qa8 {[%clk 0:01:04.9]} 35... Bxc5 {[%clk
0:00:39.5]} 36. bxc5 {[%clk 0:01:04.9]} 36... Kh7 {[%clk 0:00:37.4]} 37. Qe4+
{[%clk 0:00:57.9]} 37... Kg8 {[%clk 0:00:29.9]} 38. c6 {[%clk 0:00:58.9]} 38...
Qd6 {[%clk 0:00:28.7]} 39. a4 {[%clk 0:00:53.9]} 39... b4 {[%clk 0:00:28.4]} 40.
Qc4 {[%clk 0:00:54.3]} 40... Kf8 {[%clk 0:00:22.8]} 41. e4 {[%clk 0:00:52]}
41... f6 {[%clk 0:00:19.8]} 42. f4 {[%clk 0:00:51.3]} 42... e5 {[%clk
0:00:17.2]} 43. fxe5 {[%clk 0:00:52.4]} 43... fxe5 {[%clk 0:00:18.5]} 44. h4
{[%clk 0:00:53.7]} 44... Ke7 {[%clk 0:00:17.7]} 45. Bh3 {[%clk 0:00:54.1]} 45...
Bxh3 {[%clk 0:00:16.1]} 46. Kxh3 {[%clk 0:00:56]} 46... Qe6+ {[%clk 0:00:15.5]}
47. Qxe6+ {[%clk 0:00:55.4]} 47... Kxe6 {[%clk 0:00:17.4]} 48. Kg4 {[%clk
0:00:56.4]} 48... b3 {[%clk 0:00:17.4]} 49. c7 {[%clk 0:00:57]} 49... Kd7 {[%clk
0:00:17.1]} 50. c8=Q+ {[%clk 0:00:58.9]} 50... Kxc8 {[%clk 0:00:17.5]} 51. Kf5
{[%clk 0:01:00.8]} 51... b2 {[%clk 0:00:18.1]} 52. Kg6 {[%clk 0:01:02.7]} 52...
b1=Q {[%clk 0:00:18.8]} 53. Kxg7 {[%clk 0:01:04.6]} 53... Qxe4 {[%clk
0:00:19.3]} 54. Kxh6 {[%clk 0:01:06.5]} 54... Qg4 {[%clk 0:00:19.7]} 55. h5
{[%clk 0:01:07.7]} 55... Qxg3 {[%clk 0:00:20.1]} 56. Kh7 {[%clk 0:01:08.8]}
56... e4 {[%clk 0:00:21.6]} 57. h6 {[%clk 0:01:10]} 57... e3 {[%clk 0:00:22.8]}
58. Kh8 {[%clk 0:01:11.3]} 58... e2 {[%clk 0:00:23.6]} 59. h7 {[%clk 0:01:12.6]}
59... e1=Q {[%clk 0:00:24]} 60. a5 {[%clk 0:01:14.1]} 60... Qe8# {[%clk
0:00:24.3]} 0-1

[Event "GrandPrix_29.05"]
[Site "Chess.com"]
[Date "2020.05.29"]
[Round "4"]
[White "Saxar85"]
[Black "Lavrov_Maxim"]
[Result "1/2-1/2"]
[WhiteElo "2568"]
[BlackElo "2405"]
[TimeControl "600+2"]
[EndTime "11:00:15 PDT"]
[Termination "Game drawn by repetition"]

1. e4 {[%clk 0:09:52.3]} 1... e5 {[%clk 0:09:58]} 2. Nf3 {[%clk 0:09:51.6]} 2...
Nc6 {[%clk 0:09:58]} 3. Bb5 {[%clk 0:09:48.5]} 3... a6 {[%clk 0:09:57.4]} 4. Ba4
{[%clk 0:09:48.5]} 4... Nf6 {[%clk 0:09:57.4]} 5. d3 {[%clk 0:09:47.5]} 5... b5
{[%clk 0:09:56.9]} 6. Bb3 {[%clk 0:09:46.9]} 6... Be7 {[%clk 0:09:58.1]} 7. O-O
{[%clk 0:09:45.6]} 7... d6 {[%clk 0:09:58.5]} 8. a4 {[%clk 0:09:41.5]} 8... Rb8
{[%clk 0:09:51.5]} 9. c3 {[%clk 0:09:31.2]} 9... O-O {[%clk 0:09:49.7]} 10. Nbd2
{[%clk 0:09:31.7]} 10... d5 {[%clk 0:08:56.4]} 11. axb5 {[%clk 0:09:13]} 11...
axb5 {[%clk 0:08:55]} 12. h3 {[%clk 0:09:10.5]} 12... dxe4 {[%clk 0:08:05.4]}
13. dxe4 {[%clk 0:09:09.2]} 13... Bc5 {[%clk 0:08:01.7]} 14. Qc2 {[%clk
0:08:20.4]} 14... Nh5 {[%clk 0:07:54.3]} 15. Bd5 {[%clk 0:08:19]} 15... Ne7
{[%clk 0:06:58.6]} 16. Nb3 {[%clk 0:08:14]} 16... Bd6 {[%clk 0:06:55.5]} 17. Bg5
{[%clk 0:06:42]} 17... Nf6 {[%clk 0:06:48.1]} 18. Bxf6 {[%clk 0:06:28.8]} 18...
gxf6 {[%clk 0:06:47.8]} 19. Na5 {[%clk 0:06:26.3]} 19... Bd7 {[%clk 0:06:25.7]}
20. Rfd1 {[%clk 0:06:01.6]} 20... Nxd5 {[%clk 0:06:18.9]} 21. Rxd5 {[%clk
0:05:48.5]} 21... Kh8 {[%clk 0:06:17.4]} 22. Nh4 {[%clk 0:05:42.2]} 22... Rg8
{[%clk 0:06:15]} 23. Nf5 {[%clk 0:05:39.2]} 23... Qf8 {[%clk 0:05:39.6]} 24.
Rad1 {[%clk 0:04:48.7]} 24... Bxf5 {[%clk 0:04:56.6]} 25. exf5 {[%clk
0:04:47.5]} 25... Qh6 {[%clk 0:04:57.1]} 26. Qe4 {[%clk 0:03:43.7]} 26... Rg7
{[%clk 0:04:51.3]} 27. R1d3 {[%clk 0:01:14.3]} 27... Rbg8 {[%clk 0:04:49.4]} 28.
Rg3 {[%clk 0:01:11.1]} 28... Rxg3 {[%clk 0:04:41]} 29. fxg3 {[%clk 0:01:11.8]}
29... Rxg3 {[%clk 0:04:39.3]} 30. Rxb5 {[%clk 0:01:01.1]} 30... Rg8 {[%clk
0:01:38.1]} 31. Nc4 {[%clk 0:00:38]} 31... Qxh3 {[%clk 0:01:25]} 32. Nxd6 {[%clk
0:00:34.2]} 32... cxd6 {[%clk 0:01:23.6]} 33. Rb8 {[%clk 0:00:31.1]} 33... Qg3
{[%clk 0:01:04.9]} 34. Rxg8+ {[%clk 0:00:29.7]} 34... Kxg8 {[%clk 0:01:05.2]}
35. Kf1 {[%clk 0:00:28.5]} 35... d5 {[%clk 0:00:57.4]} 36. Qxd5 {[%clk
0:00:22.6]} 36... Qf4+ {[%clk 0:00:57.4]} 37. Ke2 {[%clk 0:00:21.9]} 37... Qxf5
{[%clk 0:00:55.5]} 38. b4 {[%clk 0:00:21.1]} 38... Qc2+ {[%clk 0:00:46.7]} 39.
Qd2 {[%clk 0:00:21.6]} 39... Qe4+ {[%clk 0:00:44.9]} 40. Kf2 {[%clk 0:00:22.5]}
40... Qc4 {[%clk 0:00:39.4]} 41. Qb2 {[%clk 0:00:19.1]} 41... Qf4+ {[%clk
0:00:35.6]} 42. Ke2 {[%clk 0:00:18.4]} 42... Qe4+ {[%clk 0:00:33.7]} 43. Kd1
{[%clk 0:00:17.3]} 43... Qd3+ {[%clk 0:00:32.3]} 44. Qd2 {[%clk 0:00:17.8]}
44... Qb1+ {[%clk 0:00:33.1]} 45. Ke2 {[%clk 0:00:18.5]} 45... Qe4+ {[%clk
0:00:32.6]} 46. Kf2 {[%clk 0:00:19.4]} 46... Qc4 {[%clk 0:00:30.8]} 47. Qb2
{[%clk 0:00:18.1]} 47... Qf4+ {[%clk 0:00:23.7]} 48. Ke2 {[%clk 0:00:18.7]}
48... Qe4+ {[%clk 0:00:20.6]} 49. Kf2 {[%clk 0:00:19.9]} 49... Qf4+ {[%clk
0:00:17.5]} 1/2-1/2

[Event "GrandPrix_29.05"]
[Site "Chess.com"]
[Date "2020.05.29"]
[Round "4"]
[White "TheEternalPatzer"]
[Black "VolodymyrMolyboha"]
[Result "1/2-1/2"]
[WhiteElo "2183"]
[BlackElo "2266"]
[TimeControl "600+2"]
[EndTime "11:00:15 PDT"]
[Termination "Game drawn by repetition"]

1. c4 {[%clk 0:10:01.9]} 1... e5 {[%clk 0:09:47.9]} 2. Nc3 {[%clk 0:10:00.8]}
2... Nf6 {[%clk 0:09:48]} 3. Nf3 {[%clk 0:10:00.6]} 3... Nc6 {[%clk 0:09:48.5]}
4. e3 {[%clk 0:10:00.8]} 4... Bb4 {[%clk 0:09:37]} 5. Qc2 {[%clk 0:09:51.9]}
5... O-O {[%clk 0:09:36]} 6. Nd5 {[%clk 0:09:47.3]} 6... a5 {[%clk 0:09:13.8]}
7. a3 {[%clk 0:09:29.3]} 7... Bc5 {[%clk 0:09:12.4]} 8. Ng5 {[%clk 0:07:51.2]}
8... g6 {[%clk 0:08:44.2]} 9. Nxf6+ {[%clk 0:07:47.4]} 9... Qxf6 {[%clk
0:08:43.2]} 10. Ne4 {[%clk 0:07:48.5]} 10... Qe7 {[%clk 0:08:44.2]} 11. Be2
{[%clk 0:07:16.4]} 11... d6 {[%clk 0:08:15.8]} 12. O-O {[%clk 0:07:09.8]} 12...
Bf5 {[%clk 0:08:07]} 13. d3 {[%clk 0:07:10]} 13... Bxe4 {[%clk 0:07:33.3]} 14.
dxe4 {[%clk 0:07:09.7]} 14... a4 {[%clk 0:07:33.6]} 15. Bd2 {[%clk 0:06:46.5]}
15... Nd8 {[%clk 0:07:05.7]} 16. Bb4 {[%clk 0:06:30.3]} 16... Ne6 {[%clk
0:05:36]} 17. Rfd1 {[%clk 0:06:26.5]} 17... h5 {[%clk 0:05:19.4]} 18. Rd5 {[%clk
0:05:46.4]} 18... b6 {[%clk 0:04:59]} 19. Bd1 {[%clk 0:05:26.9]} 19... Ra7
{[%clk 0:04:30.5]} 20. Qe2 {[%clk 0:05:19]} 20... Qh4 {[%clk 0:03:48.5]} 21. Bc2
{[%clk 0:05:11.4]} 21... Ng5 {[%clk 0:03:31.4]} 22. f3 {[%clk 0:03:37.6]} 22...
Ne6 {[%clk 0:03:27.8]} 23. Qf2 {[%clk 0:03:14]} 23... Qxf2+ {[%clk 0:02:52.5]}
24. Kxf2 {[%clk 0:03:15.9]} 24... f5 {[%clk 0:02:53]} 25. exf5 {[%clk
0:03:05.1]} 25... gxf5 {[%clk 0:02:52.7]} 26. Ke2 {[%clk 0:02:52.4]} 26... Kg7
{[%clk 0:02:47.2]} 27. Rg1 {[%clk 0:02:28.6]} 27... f4 {[%clk 0:01:52.3]} 28.
Bxc5 {[%clk 0:02:25.7]} 28... bxc5 {[%clk 0:01:51.1]} 29. g3 {[%clk 0:02:01.4]}
29... fxe3 {[%clk 0:01:50]} 30. Kxe3 {[%clk 0:01:57.8]} 30... Nd4 {[%clk
0:01:23.7]} 31. Bd1 {[%clk 0:01:48.3]} 31... c6 {[%clk 0:01:17.8]} 32. Rxd4
{[%clk 0:01:39.6]} 32... cxd4+ {[%clk 0:01:18.4]} 33. Ke4 {[%clk 0:01:36.4]}
33... Kf6 {[%clk 0:01:01.7]} 34. f4 {[%clk 0:01:34.1]} 34... exf4 {[%clk
0:00:18.4]} 35. gxf4 {[%clk 0:01:26.1]} 35... Ke6 {[%clk 0:00:12.7]} 36. Rg6+
{[%clk 0:01:22.1]} 36... Rf6 {[%clk 0:00:11.7]} 37. f5+ {[%clk 0:00:44.4]} 37...
Kf7 {[%clk 0:00:12.4]} 38. Bxh5 {[%clk 0:00:42.2]} 38... Rxg6 {[%clk 0:00:13.6]}
39. Bxg6+ {[%clk 0:00:36.5]} 39... Kf6 {[%clk 0:00:14.6]} 40. Kxd4 {[%clk
0:00:38.4]} 40... Rb7 {[%clk 0:00:15.2]} 41. Be8 {[%clk 0:00:37.6]} 41... Rxb2
{[%clk 0:00:13.4]} 42. Bxc6 {[%clk 0:00:36.2]} 42... Rxh2 {[%clk 0:00:14.4]} 43.
Bxa4 {[%clk 0:00:34.7]} 43... Ra2 {[%clk 0:00:15.1]} 44. Bd7 {[%clk 0:00:32.6]}
44... Rxa3 {[%clk 0:00:15.1]} 45. Kd5 {[%clk 0:00:32.7]} 45... Rd3+ {[%clk
0:00:16.1]} 46. Ke4 {[%clk 0:00:31.4]} 46... Rd1 {[%clk 0:00:16.3]} 47. Be6
{[%clk 0:00:31]} 47... Ke7 {[%clk 0:00:16]} 48. Kf4 {[%clk 0:00:30.4]} 48... Kf6
{[%clk 0:00:14.3]} 49. Ke4 {[%clk 0:00:30.7]} 49... Rd2 {[%clk 0:00:14.9]} 50.
Ke3 {[%clk 0:00:30.6]} 50... Rd1 {[%clk 0:00:15]} 51. Ke4 {[%clk 0:00:31.4]}
1/2-1/2

[Event "GrandPrix_29.05"]
[Site "Chess.com"]
[Date "2020.05.29"]
[Round "4"]
[White "econpower"]
[Black "CherepZhenya"]
[Result "1/2-1/2"]
[WhiteElo "2017"]
[BlackElo "2134"]
[TimeControl "600+2"]
[EndTime "11:00:15 PDT"]
[Termination "Game drawn by agreement"]

1. c4 {[%clk 0:10:01.9]} 1... c5 {[%clk 0:09:58.9]} 2. g3 {[%clk 0:10:02.5]}
2... Nc6 {[%clk 0:09:59.1]} 3. Bg2 {[%clk 0:10:04.1]} 3... g6 {[%clk 0:09:59.9]}
4. Nc3 {[%clk 0:10:05.6]} 4... Bg7 {[%clk 0:10:00.4]} 5. e3 {[%clk 0:10:07.2]}
5... e5 {[%clk 0:10:00.7]} 6. Nge2 {[%clk 0:10:08.3]} 6... Nge7 {[%clk
0:10:01.2]} 7. O-O {[%clk 0:10:09.6]} 7... O-O {[%clk 0:10:01.5]} 8. a3 {[%clk
0:10:10.5]} 8... a5 {[%clk 0:10:01.6]} 9. Rb1 {[%clk 0:10:11.2]} 9... d6 {[%clk
0:10:02]} 10. d3 {[%clk 0:10:11.6]} 10... Be6 {[%clk 0:10:02]} 11. Nd5 {[%clk
0:10:12.4]} 11... Rb8 {[%clk 0:10:00.5]} 12. Nec3 {[%clk 0:10:12.9]} 12... Qd7
{[%clk 0:09:58.7]} 13. Bd2 {[%clk 0:10:09.1]} 13... Bh3 {[%clk 0:09:47.6]} 14.
Bxh3 {[%clk 0:09:04.2]} 14... Qxh3 {[%clk 0:09:46]} 15. Nxe7+ {[%clk 0:09:06.1]}
15... Nxe7 {[%clk 0:09:46.5]} 16. Nb5 {[%clk 0:09:08]} 16... Nf5 {[%clk
0:09:18.5]} 17. e4 {[%clk 0:08:48.3]} 17... Nd4 {[%clk 0:09:10]} 18. Nxd4 {[%clk
0:08:48.9]} 18... exd4 {[%clk 0:09:06.7]} 19. Bxa5 {[%clk 0:08:28.2]} 19... b6
{[%clk 0:09:06]} 20. Bd2 {[%clk 0:08:21.5]} 20... f5 {[%clk 0:09:04.5]} 21. f3
{[%clk 0:08:22.5]} 21... fxe4 {[%clk 0:08:55.6]} 22. fxe4 {[%clk 0:08:21.7]}
22... Be5 {[%clk 0:08:51.4]} 23. Qe2 {[%clk 0:07:45.4]} 23... h5 {[%clk
0:07:56.9]} 24. Bh6 {[%clk 0:07:24.1]} 24... Rxf1+ {[%clk 0:07:44.2]} 25. Rxf1
{[%clk 0:07:16.6]} 25... h4 {[%clk 0:07:34.1]} 26. Qg2 {[%clk 0:07:15.1]} 26...
Qxg2+ {[%clk 0:07:25]} 27. Kxg2 {[%clk 0:07:15.9]} 27... hxg3 {[%clk 0:07:26.2]}
28. hxg3 {[%clk 0:07:17]} 28... b5 {[%clk 0:07:27.6]} 29. cxb5 {[%clk
0:07:07.8]} 29... Rxb5 {[%clk 0:07:25.8]} 30. b4 {[%clk 0:06:12]} 30... cxb4
{[%clk 0:07:22.4]} 31. axb4 {[%clk 0:06:13.9]} 31... Rxb4 {[%clk 0:07:23.2]} 32.
Rf3 {[%clk 0:05:26.8]} 32... Kh7 {[%clk 0:06:21.4]} 33. Bg5 {[%clk 0:05:26.6]}
33... Kg7 {[%clk 0:06:09.4]} 34. Kh3 {[%clk 0:05:26.5]} 34... Rb5 {[%clk
0:06:03.1]} 35. Kg4 {[%clk 0:05:26.1]} 35... d5 {[%clk 0:06:03.3]} 36. exd5
{[%clk 0:05:23.7]} 36... Rxd5 {[%clk 0:06:03.8]} 37. Rf1 {[%clk 0:04:42.8]}
37... Kg8 {[%clk 0:05:34.1]} 38. Bh6 {[%clk 0:04:28.6]} 38... Kh7 {[%clk
0:05:22.8]} 39. Bf8 {[%clk 0:04:15.3]} 39... Kg8 {[%clk 0:05:11.4]} 40. Be7
{[%clk 0:03:55.9]} 40... Rd7 {[%clk 0:04:47.9]} 41. Bh4 {[%clk 0:03:54.4]} 41...
Bg7 {[%clk 0:04:34.5]} 42. Rc1 {[%clk 0:03:41.4]} 42... Kf7 {[%clk 0:04:30.8]}
43. Rc6 {[%clk 0:03:41.5]} 43... Ra7 {[%clk 0:04:03.6]} 44. Kf3 {[%clk
0:03:42.1]} 44... Ra5 {[%clk 0:03:56.2]} 45. g4 {[%clk 0:03:38.7]} 45... Ra2
{[%clk 0:03:19.7]} 46. Rc7+ {[%clk 0:03:37.4]} 46... Kg8 {[%clk 0:03:19.1]} 47.
Bg5 {[%clk 0:03:29.3]} 47... Rh2 {[%clk 0:03:08.3]} 48. Bf4 {[%clk 0:03:03.9]}
48... Rh3+ {[%clk 0:02:40.7]} 49. Ke4 {[%clk 0:03:04.8]} 49... Rh4 {[%clk
0:02:37.2]} 50. g5 {[%clk 0:03:00.9]} 50... Rg4 {[%clk 0:02:25.2]} 51. Rb7
{[%clk 0:02:28.1]} 51... Rh4 {[%clk 0:02:23.6]} 52. Rb1 {[%clk 0:02:23.2]} 52...
Rh3 {[%clk 0:02:18.3]} 53. Rg1 {[%clk 0:01:58.9]} 53... Kf7 {[%clk 0:02:15.5]}
54. Rg2 {[%clk 0:01:25.4]} 54... Kg8 {[%clk 0:01:47.2]} 55. Rh2 {[%clk
0:01:20.1]} 55... Rxh2 {[%clk 0:01:40.3]} 56. Bxh2 {[%clk 0:01:20.9]} 56... Kf7
{[%clk 0:01:28]} 57. Be5 {[%clk 0:01:16.2]} 57... Bf8 {[%clk 0:01:28.6]} 58.
Bxd4 {[%clk 0:01:17]} 58... Be7 {[%clk 0:01:26.6]} 59. Be3 {[%clk 0:01:17]}
59... Ke6 {[%clk 0:01:27.5]} 60. d4 {[%clk 0:01:18]} 60... Bd6 {[%clk
0:01:10.8]} 61. d5+ {[%clk 0:01:14.7]} 61... Kd7 {[%clk 0:01:09]} 62. Bf4 {[%clk
0:01:12.8]} 62... Bb4 {[%clk 0:01:07.9]} 63. Be5 {[%clk 0:01:13.1]} 63... Ba5
{[%clk 0:01:04]} 64. Bd4 {[%clk 0:01:09.3]} 64... Bc7 {[%clk 0:01:03.6]} 65. Bf6
{[%clk 0:01:00.5]} 65... Bd6 {[%clk 0:01:00.6]} 66. Be5 {[%clk 0:00:47.5]}
1/2-1/2